bitfinex-derivatives/quotes_SOLF0:USTF0_20241215
["timestamp","ask_amount","ask_price","bid_price","bid_amount"]
[1734249944703,2.16,217.37,217.2,2.16]
[1734249944902,2.16,217.37,217.26,13.09755141]
[1734249945096,2.3015,217.29,217.26,13.09755141]
[1734249945303,2.3015,217.29,217.28,6.44555847]
[1734249945506,2.16,217.31,217.28,6.44555847]
[1734249945996,5.45679141,217.48,217.3,6.44555847]
[1734249946202,2.16,217.47,217.41,6.44555847]
[1734249947002,2.3,217.42,217.41,6.44555847]
[1734249947203,2.16,217.42,217.38,10.05865148]
[1734249948597,2.3002,217.41,217.38,10.05865148]
[1734249948897,2.16,217.42,217.35,10.05865148]
[1734249949701,2.3004,217.39,217.35,10.05865148]
[1734249952101,10.05865148,217.34,217.17,50.793568]
[1734249952304,10.05865148,217.25,217.17,50.793568]
[1734249952506,2.3023,217.21,217.17,50.793568]
[1734249952709,2.16,217.24,217.17,50.793568]
[1734249953207,2.16,217.23,217.17,56.25554277]
[1734249954706,2.3022,217.22,217.17,50.793568]
[1734249954914,2.16,217.23,217.17,50.793568]
[1734249955098,2.16,217.23,217.15,2.9042]
[1734249955498,10.05865148,217.25,217.15,8.3541645]
[1734249955704,10.05865148,217.19,217.03,6.349196]
[1734249956009,2.303,217.14,217.07,5.56827373]
[1734249956198,2.16,217.13,217.07,5.56827373]
[1734249957499,2.16,217.13,217.04,4.3237]
[1734249957807,4.4631,217.13,217.04,6.6277]
[1734249958009,2.16,217.12,217.04,4.3237]
[1734249958310,2.16,217.12,217.06,5.65838777]
[1734249960010,2.16,217.12,217.06,7.96218777]
[1734249960910,2.16,217.12,217.04,4.3237]
[1734249961311,2.3035,217.1,217.04,4.3237]
[1734249961511,2.16,217.12,217.04,4.3237]
[1734249962208,10.05865148,217.1,216.96,2.3049]
[1734249962409,10.05865148,217.07,216.97,28.48224003]
[1734249962611,2.3041,217.04,216.97,2.8925]
[1734249962808,2.16,217.06,216.97,2.8925]
[1734249963220,2.3043,217.02,216.97,2.8925]
[1734249963414,2.16,217.01,216.97,2.8925]
[1734249964417,2.16,217.04,216.97,2.8925]
[1734249964908,4.4641,217.04,216.97,5.1973]
[1734249966214,2.16,217.04,216.98,2.3047]
[1734249967017,2.16,217.05,216.98,10.05865148]
[1734249967615,2.16,217.05,217.0,2.3045]
[1734249968020,2.16,217.06,217.01,10.05865148]
[1734249968518,10.05865148,217.13,217.02,1.4599]
[1734249968716,2.24,217.12,217.02,1.4599]
[1734249969622,2.3035,217.09,217.03,2.3041]
[1734249969919,2.24,217.12,217.03,2.3041]
[1734249970126,4.5434,217.11,217.04,2.304]
[1734249970420,2.24,217.1,217.04,2.304]
[1734249970619,2.24,217.09,217.04,2.304]
[1734249971125,2.24,217.09,217.05,2.304]
[1734249971419,2.24,217.1,217.04,10.05865148]
[1734249971619,2.24,217.12,217.04,10.05865148]
[1734249972316,2.24,217.12,217.07,10.05865148]
[1734249972523,2.24,217.12,217.08,1.5352]
[1734249973125,2.24,217.12,217.09,2.3035]
[1734249973621,2.3029,217.16,217.1,2.3034]
[1734249973821,10.05865148,217.19,217.08,3.0305]
[1734249973822,2.3027,217.17,217.08,3.0305]
[1734249974023,2.24,217.16,217.08,3.0305]
[1734249974521,2.24,217.16,217.11,2.3033]
[1734249974820,2.24,217.16,217.1,10.05865148]
[1734249975015,10.05865148,217.22,217.13,2.3031]
[1734249975321,2.24,217.21,217.11,1.4082]
[1734249975721,2.24,217.2,217.11,1.4082]
[1734249976723,2.3026,217.18,217.12,2.3031]
[1734249978124,1.5414,217.28,217.13,10.05865148]
[1734249978125,2.24,217.19,217.13,10.05865148]
[1734249978415,2.24,217.18,217.11,1.4082]
[1734249978623,2.24,217.17,217.11,1.4082]
[1734249979417,2.3028,217.16,217.11,1.4082]
[1734249979622,2.24,217.17,217.11,1.4082]
[1734249981322,2.3023,217.21,217.15,2.3029]
[1734249981620,2.24,217.2,217.15,2.3029]
[1734249982316,1.5414,217.28,217.13,10.05865148]
[1734249982521,66.85527889,217.29,217.13,10.05865148]
[1734249982721,66.85527889,217.29,217.12,2.24]
[1734249982722,2.24,217.28,217.16,10.05865148]
[1734249982922,2.24,217.27,217.17,3.0248]
[1734249983123,2.24,217.26,217.17,3.0248]
[1734249983320,2.24,217.26,217.19,10.05865148]
[1734249983520,2.24,217.26,217.21,2.3022]
[1734249984525,2.3015,217.28,217.19,10.05865148]
[1734249984726,2.24,217.27,217.19,10.05865148]
[1734249985024,2.24,217.27,217.2,1.5547]
[1734249985218,2.24,217.27,217.22,2.3021]
[1734249985415,2.24,217.27,217.2,1.5547]
[1734249985620,59.09802741,217.29,217.2,1.5547]
[1734249985621,56.79662741,217.29,217.2,1.5547]
[1734249985819,2.24,217.29,217.2,1.5547]
[1734249986422,2.24,217.29,217.24,2.3019]
[1734249986926,2.24,217.29,217.22,10.05865148]
[1734249987124,2.24,217.29,217.23,2.302]
[1734249987326,2.24,217.29,217.2,1.5547]
[1734249988024,2.24,217.29,217.2,6.99485937]
[1734249988426,2.24,217.29,217.2,3.857]
[1734249988427,2.3018,217.26,217.2,3.857]
[1734249989530,2.3018,217.26,217.21,2.3023]
[1734249991026,4.616,218.08,217.25,10.05865148]
[1734249991229,2.24,217.36,217.25,10.05865148]
[1734249991625,4.5408,217.36,217.29,2.3014]
[1734249991829,4.5408,217.36,217.28,10.05865148]
[1734249992230,4.5408,217.36,217.3,2.3013]
[1734249993528,2.24,217.36,217.31,2.3012]
[1734249993724,2.24,217.36,217.28,10.05865148]
[1734249993929,2.24,217.36,217.27,1.5343]
[1734249993930,2.40165,217.37,217.31,10.05865148]
[1734249994531,4.70225,217.37,217.31,2.3011]
[1734249994724,4.70225,217.37,217.28,10.05865148]
[1734249995124,2.40165,217.37,217.28,10.05865148]
[1734249995334,2.40165,217.37,217.29,1.5306]
[1734249995629,0.16165,217.37,217.31,10.05865148]
[1734249996431,2.3007,217.36,217.31,2.3011]
[1734249996933,0.16165,217.37,217.31,2.3011]
[1734249997126,0.16165,217.37,217.32,2.3011]
[1734249997335,0.16165,217.37,217.29,1.5306]
[1734249998831,2.3008,217.36,217.29,3.8319]
[1734249999432,0.16165,217.37,217.29,3.8319]
[1734249999733,2.3008,217.35,217.29,3.8319]
[1734250001024,2.3008,217.35,217.29,1.5306]
[1734250001328,2.3008,217.35,217.3,2.3012]
[1734250002233,2.3007,217.36,217.3,2.3012]
[1734250002929,0.16165,217.37,217.33,2.301]
[1734250003328,0.16165,217.37,217.31,10.05865148]
[1734250003635,0.16165,217.37,217.32,2.3011]
[1734250004435,0.16165,217.37,217.28,10.05865148]
[1734250004636,0.16165,217.37,217.22,10.05865148]
[1734250004830,2.3014,217.29,217.22,10.05865148]
[1734250005037,2.22,217.29,217.22,10.05865148]
[1734250005432,2.3015,217.28,217.22,10.05865148]
[1734250005628,2.22,217.29,217.25,2.3018]
[1734250006135,2.22,217.29,217.22,10.05865148]
[1734250006336,2.22,217.29,217.22,12.36075148]
[1734250006732,2.3016,217.28,217.22,10.05865148]
[1734250006936,2.3016,217.28,217.23,2.302]
[1734250007432,2.3017,217.26,217.2,2.0]
[1734250007634,2.22,217.29,217.2,2.0]
[1734250008326,2.3018,217.26,217.2,4.3024]
[1734250008637,2.3018,217.26,217.2,2.0]
[1734250009636,2.3018,217.26,217.21,2.3022]
[1734250011435,2.3018,217.26,217.2,4.3024]
[1734250012639,2.22,217.29,217.21,2.3022]
[1734250012842,2.22,217.29,217.2,2.0]
[1734250013844,2.22,217.29,217.23,2.302]
[1734250014039,2.22,217.29,217.22,10.05865148]
[1734250014535,4.5214,217.29,217.24,2.3019]
[1734250014934,2.22,217.29,217.24,2.3019]
[1734250016846,2.3013,217.3,217.24,2.3019]
[1734250017142,4.5213,217.3,217.25,2.3018]
[1734250018044,4.5213,217.3,217.2,2.0]
[1734250018045,2.22,217.3,217.2,2.0]
[1734250019237,2.3017,217.26,217.21,2.3022]
[1734250020042,2.3015,217.28,217.23,2.302]
[1734250020438,2.22,217.3,217.2,2.0]
[1734250020637,2.22,217.3,217.25,2.3018]
[1734250020838,2.22,217.31,217.22,10.05865148]
[1734250021635,2.22,217.31,217.26,2.3017]
[1734250023145,10.05865148,217.35,217.26,2.3017]
[1734250023344,2.22,217.34,217.26,2.3017]
[1734250023540,1.5374,217.37,217.27,2.3016]
[1734250023742,66.51,217.49,217.25,10.05865148]
[1734250023743,2.22,217.36,217.25,10.05865148]
[1734250023940,10.05865148,217.39,217.28,10.05865148]
[1734250023941,2.22,217.39,217.28,10.05865148]
[1734250024247,1.4065,217.46,217.31,10.05865148]
[1734250024248,10.05865148,217.45,217.31,10.05865148]
[1734250024454,2.22,217.41,217.31,10.05865148]
[1734250024656,15.56990684,217.45,217.31,10.05865148]
[1734250024846,2.22,217.44,217.31,10.05865148]
[1734250025041,2.22,217.44,217.34,10.05865148]
[1734250025242,2.22,217.44,217.35,1.4729]
[1734250025545,2.22,217.43,217.35,1.4729]
[1734250025751,2.22,217.44,217.37,10.05865148]
[1734250026551,2.22,217.44,217.38,2.3004]
[1734250026752,2.22,217.45,217.38,2.3004]
[1734250026946,2.22,217.45,217.37,10.05865148]
[1734250027149,2.2999,217.44,217.37,12.35925148]
[1734250027947,2.22,217.45,217.38,2.3004]
[1734250029055,2.2998,217.44,217.38,2.3004]
[1734250031548,2.2,217.46,217.37,2.0]
[1734250031753,10.05865148,217.45,217.37,2.0]
[1734250032049,2.3005,217.38,217.37,2.0]
[1734250035355,10.05865148,217.39,217.22,2.2]
[1734250035553,2.3012,217.32,217.25,10.05865148]
[1734250035854,2.3012,217.32,217.26,1.5427]
[1734250036651,2.3012,217.32,217.27,5.41435353]
[1734250036858,2.2,217.37,217.28,10.05865148]
[1734250037053,2.2,217.38,217.28,10.05865148]
[1734250037552,2.3011,217.33,217.28,10.05865148]
[1734250038647,2.3011,217.33,217.27,9.16325353]
[1734250038648,2.2,217.32,217.27,2.3016]
[1734250038854,10.05865148,217.28,217.11,10.05865148]
[1734250039053,10.05865148,217.24,217.11,10.05865148]
[1734250039254,10.05865148,217.24,217.07,1.4148]
[1734250039255,2.2,217.23,217.08,15.65313351]
[1734250039948,2.2,217.23,217.08,17.95673351]
[1734250039949,2.3029,217.15,217.08,17.95673351]
[1734250040152,2.2,217.15,217.11,10.05865148]
[1734250041858,11.55205148,217.27,217.11,10.05865148]
[1734250042158,11.55205148,217.27,217.14,10.05865148]
[1734250042159,2.2,217.26,217.14,10.05865148]
[1734250042552,2.2,217.25,217.17,10.05865148]
[1734250043658,2.302,217.24,217.17,12.36135148]
[1734250043860,2.2,217.25,217.14,10.05865148]
[1734250045962,2.3026,217.18,217.11,12.36185148]
[1734250046160,4.5026,217.18,217.11,12.36185148]
[1734250047959,2.2,217.18,217.14,10.05865148]
[1734250048654,2.2,217.18,217.15,2.3029]
[1734250048858,2.2,217.18,217.14,10.05865148]
[1734250049363,2.2,217.18,217.16,2.3027]
[1734250050662,2.2,217.2,217.16,2.3027]
[1734250051360,2.2,217.2,217.16,3.7098]
[1734250052454,2.2,217.2,217.18,2.3026]
[1734250052651,2.302,217.24,217.18,2.3026]
[1734250052864,2.2,217.23,217.16,1.4071]
[1734250053161,2.2,217.23,217.19,2.3025]
[1734250055866,10.05865148,217.3,217.17,10.05865148]
[1734250056166,10.05865148,217.33,217.17,10.05865148]
[1734250056366,2.2,217.3,217.17,10.05865148]
[1734250056862,2.2,217.3,217.22,2.3021]
[1734250057565,10.05865148,217.33,217.22,2.3021]
[1734250057865,2.2,217.3,217.22,2.3021]
[1734250058061,10.05865148,217.33,217.24,2.3019]
[1734250058265,2.2,217.32,217.24,2.3019]
[1734250058660,2.3014,217.29,217.2,10.05865148]
[1734250058864,2.3014,217.29,217.22,2.3021]
[1734250059668,2.3014,217.29,217.2,10.05865148]
[1734250059872,2.3014,217.29,217.23,2.302]
[1734250063671,2.3014,217.29,217.2,10.05865148]
[1734250063970,2.3014,217.29,217.24,2.3019]
[1734250065165,2.3012,217.31,217.26,2.3017]
[1734250066069,2.3014,217.29,217.23,2.302]
[1734250066270,10.05865148,217.3,217.16,13.00925148]
[1734250066978,2.3017,217.27,217.16,13.00925148]
[1734250067169,2.3017,217.27,217.19,10.05865148]
[1734250067170,2.2,217.26,217.19,10.05865148]
[1734250068075,2.3017,217.27,217.23,2.302]
[1734250068373,10.05865148,217.33,217.23,2.302]
[1734250068374,2.2,217.28,217.23,2.302]
[1734250069675,4.5015,217.28,217.23,2.302]
[1734250072671,4.5015,217.28,217.24,2.3019]
[1734250074379,10.05865148,217.36,217.22,10.05865148]
[1734250074677,2.2,217.35,217.22,10.05865148]
[1734250075277,10.05865148,217.36,217.22,10.05865148]
[1734250075474,2.2,217.35,217.22,10.05865148]
[1734250075674,2.3011,217.32,217.27,2.3016]
[1734250076577,2.2,217.31,217.27,2.3016]
[1734250081279,2.3011,217.32,217.27,2.3016]
[1734250081479,4.5011,217.32,217.27,2.3016]
[1734250082784,2.2,217.32,217.26,1.4206]
[1734250082978,6.4470294,217.31,217.23,6.4470294]
[1734250083189,6.4470294,217.29,217.21,6.4470294]
[1734250083477,2.3016,217.27,217.23,2.3021]
[1734250085271,2.3016,217.27,217.23,8.7491294]
[1734250085477,4.5014,217.29,217.25,6.4470294]
[1734250086782,4.5014,217.29,217.25,8.7488294]
[1734250088281,2.2,217.29,217.25,8.7488294]
[1734250088580,2.16,217.34,217.27,6.4470294]
[1734250088778,2.16,217.34,217.29,6.4470294]
[1734250088976,6.4470294,217.36,217.29,6.4470294]
[1734250089180,4.4608,217.35,217.3,2.3013]
[1734250091085,2.16,217.34,217.29,6.4470294]
[1734250092282,2.16,217.34,217.25,1.4145]
[1734250092283,8.6070294,217.34,217.25,1.4145]
[1734250092489,8.6070294,217.34,217.26,6.4470294]
[1734250093092,2.3014,217.3,217.26,6.4470294]
[1734250093488,2.16,217.34,217.26,6.4470294]
[1734250094482,2.3013,217.32,217.26,8.7488294]
[1734250094688,2.16,217.34,217.26,8.7488294]
[1734250095697,2.3013,217.31,217.26,8.7488294]
[1734250096190,2.3016,217.29,217.23,2.3021]
[1734250096395,2.16,217.28,217.22,6.4470294]
[1734250097086,2.16,217.28,217.24,6.4470294]
[1734250097294,2.16,217.28,217.26,6.4470294]
[1734250098688,4.4616,217.28,217.26,6.4470294]
[1734250099693,2.3017,217.27,217.26,6.4470294]
[1734250099894,2.3017,217.27,217.24,6.4470294]
[1734250100792,2.3019,217.26,217.24,6.4470294]
[1734250100993,6.4470294,217.26,217.2,1.5333]
[1734250101198,6.4470294,217.24,217.13,1.5202]
[1734250101394,2.3025,217.2,217.16,6.4470294]
[1734250101794,2.16,217.23,217.18,6.4470294]
[1734250101994,2.16,217.23,217.2,6.4470294]
[1734250102195,2.16,217.23,217.22,6.4470294]
[1734250105403,2.16,217.27,217.22,6.4470294]
[1734250105599,2.16,217.27,217.24,6.4470294]
[1734250106700,4.4617,217.27,217.24,6.4470294]
[1734250110900,6.4470294,217.34,217.26,6.4470294]
[1734250111103,2.16,217.33,217.26,6.4470294]
[1734250111508,56.95918138,217.37,217.28,6.4470294]
[1734250111702,2.16,217.36,217.3,6.4470294]
[1734250112805,6.4470294,217.34,217.22,1.4672]
[1734250113007,6.4470294,217.34,217.25,6.4470294]
[1734250113310,6.4470294,217.34,217.27,6.4470294]
[1734250114610,2.3015,217.3,217.27,6.4470294]
[1734250114806,2.16,217.29,217.27,6.4470294]
[1734250116209,4.4615,217.29,217.27,6.4470294]
[1734250121307,2.16,217.29,217.22,1.4672]
[1734250121614,2.16,217.29,217.23,6.4470294]
[1734250122114,2.3018,217.27,217.23,6.4470294]
[1734250126115,2.16,217.29,217.23,6.4470294]
[1734250127614,2.3019,217.26,217.23,6.4470294]
[1734250127813,4.4619,217.26,217.23,6.4470294]
[1734250128408,2.302,217.24,217.23,6.4470294]
[1734250129311,2.3019,217.25,217.23,6.4470294]
[1734250131714,2.302,217.24,217.23,6.4470294]
[1734250132008,2.16,217.26,217.07,104.44232362]
[1734250132214,2.16,217.26,217.11,6.4470294]
[1734250132215,6.4470294,217.19,217.11,6.4470294]
[1734250132509,6.4470294,217.19,217.06,1.4736]
[1734250132510,6.4470294,217.17,217.06,1.4736]
[1734250132810,6.4470294,217.17,217.09,6.4470294]
[1734250132811,2.16,217.16,217.09,6.4470294]
[1734250133616,2.3031,217.14,217.09,6.4470294]
[1734250134009,2.16,217.16,217.09,6.4470294]
[1734250135414,6.4470294,217.15,217.08,6.4470294]
[1734250137112,2.3035,217.11,217.08,6.4470294]
[1734250137314,2.16,217.1,217.08,6.4470294]
[1734250139319,2.16,217.1,217.06,3.7774]
[1734250142912,2.16,217.1,217.09,6.4470294]
[1734250143113,2.3034,217.11,217.09,6.4470294]
[1734250143319,2.3033,217.13,217.11,6.4470294]
[1734250143517,2.9878,217.25,217.13,6.4470294]
[1734250143721,8.6070294,217.24,217.16,6.4470294]
[1734250143916,5.66046801,217.23,217.16,6.4470294]
[1734250144220,2.16,217.24,217.18,6.4470294]
[1734250145219,2.3022,217.22,217.15,10.08069412]
[1734250146124,2.3022,217.22,217.16,2.3029]
[1734250147018,2.16,217.21,217.17,2.3028]
[1734250147222,2.16,217.22,217.15,11.63679412]
[1734250147524,2.3021,217.24,217.15,11.63679412]
[1734250147823,4.4621,217.23,217.18,2.3027]
[1734250148025,2.16,217.22,217.18,2.3027]
[1734250149523,2.16,217.22,217.18,10.08069412]
[1734250149724,2.16,217.22,217.19,2.3025]
[1734250150319,2.16,217.24,217.19,2.3025]
[1734250150925,4.4621,217.24,217.18,10.08069412]
[1734250151125,2.16,217.24,217.18,10.08069412]
[1734250151527,2.3022,217.23,217.18,12.38339412]
[1734250154826,2.16,217.24,217.19,2.3026]
[1734250156328,4.4621,217.24,217.19,2.3026]
[1734250156926,4.4621,217.24,217.2,2.3024]
[1734250157226,4.4621,217.24,217.18,10.08069412]
[1734250157528,2.3023,217.22,217.17,2.3027]
[1734250158028,4.4621,217.24,217.19,2.3025]
[1734250158229,4.4621,217.24,217.15,13.14749412]
[1734250158230,2.16,217.23,217.18,10.08069412]
[1734250158528,2.16,217.25,217.18,10.08069412]
[1734250160220,10.08069412,217.34,217.18,10.08069412]
[1734250160421,2.16,217.33,217.18,10.08069412]
[1734250160626,2.3018,217.27,217.22,2.3022]
[1734250160825,2.16,217.26,217.22,2.3022]
[1734250161731,2.16,217.26,217.24,2.302]
[1734250163838,2.16,217.28,217.24,2.302]
[1734250164134,2.16,217.28,217.26,2.3018]
[1734250164331,1.4502,217.36,217.24,10.08069412]
[1734250164533,4.4609,217.35,217.29,2.3014]
[1734250165239,2.301,217.34,217.29,2.3014]
[1734250165937,109.47320138,217.37,217.27,10.08069412]
[1734250166138,4.4608,217.36,217.3,2.3013]
[1734250167140,4.4608,217.36,217.32,6.44332507]
[1734250168632,2.16,217.36,217.32,6.44332507]
[1734250169728,2.16,217.36,217.23,5.1582]
[1734250169729,2.9371,217.46,217.34,6.44332507]
[1734250169931,6.44332507,217.41,217.34,6.44332507]
[1734250170134,2.16,217.4,217.34,6.44332507]
[1734250170537,6.44332507,217.41,217.34,6.44332507]
[1734250171036,2.16,217.4,217.34,6.44332507]
[1734250171739,2.3004,217.39,217.34,6.44332507]
[1734250172739,6.44332507,217.38,217.27,5.407256]
[1734250173046,6.44332507,217.38,217.3,6.44332507]
[1734250173338,2.16,217.4,217.27,5.407256]
[1734250173339,6.44332507,217.36,217.27,5.407256]
[1734250173538,2.16,217.35,217.29,6.44332507]
[1734250173839,2.301,217.34,217.29,8.74482507]
[1734250174733,2.301,217.34,217.22,1.5489]
[1734250174734,6.44332507,217.34,217.22,1.5489]
[1734250174933,6.44332507,217.32,217.25,6.44332507]
[1734250175636,56.76737924,217.4,217.27,6.44332507]
[1734250175637,2.16,217.31,217.27,6.44332507]
[1734250175941,2.16,217.3,217.27,6.44332507]
[1734250176138,2.16,217.29,217.27,6.44332507]
[1734250176734,2.16,217.31,217.28,2.3016]
[1734250176944,2.16,217.32,217.28,2.3016]
[1734250178434,2.16,217.32,217.29,6.44332507]
[1734250181137,2.16,217.32,217.31,6.44332507]
[1734250181542,2.3008,217.36,217.31,6.44332507]
[1734250181742,2.16,217.35,217.31,6.44332507]
[1734250182445,2.3008,217.36,217.33,6.44332507]
[1734250182646,2.16,217.35,217.33,6.44332507]
[1734250184143,2.16,217.36,217.33,6.44332507]
[1734250185743,53.01966,217.5,217.35,6.44332507]
[1734250185944,2.3002,217.41,217.37,6.44332507]
[1734250186245,2.16,217.4,217.37,6.44332507]
[1734250186851,2.3002,217.41,217.37,6.44332507]
[1734250187044,2.16,217.4,217.37,6.44332507]
[1734250187949,2.16,217.4,217.35,6.44332507]
[1734250188943,2.3007,217.37,217.31,2.3013]
[1734250189243,6.44332507,217.37,217.3,6.44332507]
[1734250189639,2.3011,217.34,217.3,6.44332507]
[1734250189844,4.4611,217.34,217.3,6.44332507]
[1734250195347,2.16,217.34,217.3,6.44332507]
[1734250195555,2.16,217.34,217.32,6.44332507]
[1734250199154,4.461,217.34,217.32,6.44332507]
[1734250200256,4.461,217.34,217.29,2.3015]
[1734250200257,2.16,217.34,217.27,3.0374]
[1734250200464,2.16,217.34,217.22,3.7089]
[1734250200465,6.44332507,217.33,217.26,6.44332507]
[1734250201259,2.16,217.32,217.3,6.44332507]
[1734250201456,16.71054309,217.39,217.3,6.44332507]
[1734250201763,2.16,217.38,217.3,6.44332507]
[1734250201964,2.16,217.38,217.32,6.44332507]
[1734250202159,2.301,217.35,217.32,6.44332507]
[1734250202458,2.301,217.35,217.34,6.44332507]
[1734250202459,2.16,217.35,217.34,6.44332507]
[1734250203258,6.44332507,217.42,217.34,6.44332507]
[1734250203456,2.16,217.41,217.36,6.44332507]
[1734250203755,2.16,217.4,217.38,6.44332507]
[1734250203960,2.16,217.39,217.38,6.44332507]
[1734250204567,4.4605,217.39,217.38,6.44332507]
[1734250205167,2.16,217.39,217.38,6.44332507]
[1734250206059,2.16,217.39,217.34,6.44332507]
[1734250206563,2.3006,217.38,217.34,6.44332507]
[1734250208466,2.3008,217.36,217.32,6.44332507]
[1734250210171,2.3006,217.38,217.34,6.44332507]
[1734250210376,2.16,217.39,217.36,6.44332507]
[1734250211778,4.4604,217.39,217.36,6.44332507]
[1734250212680,2.16,217.39,217.36,6.44332507]
[1734250214375,2.16,217.39,217.35,6.44332507]
[1734250215575,2.3006,217.38,217.35,6.44332507]
[1734250216978,2.16,217.39,217.35,6.44332507]
[1734250217179,2.3008,217.36,217.33,6.44332507]
[1734250218176,2.301,217.35,217.33,6.44332507]
[1734250218378,2.16,217.34,217.31,6.44332507]
[1734250218575,2.16,217.33,217.29,6.44332507]
[1734250218783,4.4612,217.32,217.29,6.44332507]
[1734250218976,2.16,217.31,217.29,6.44332507]
[1734250219182,2.16,217.31,217.26,2.3018]
[1734250219485,2.16,217.31,217.29,6.44332507]
[1734250220481,2.3014,217.3,217.29,6.44332507]
[1734250221179,2.3014,217.3,217.27,6.44332507]
[1734250221378,2.16,217.31,217.27,6.44332507]
[1734250221582,2.3015,217.29,217.27,6.44332507]
[1734250224287,2.3015,217.29,217.25,6.44332507]
[1734250224787,2.16,217.28,217.27,6.44332507]
[1734250228184,2.16,217.28,217.2,4.4692]
[1734250228580,8.60332507,217.28,217.1,2.16]
[1734250228788,6.44332507,217.26,217.18,6.44332507]
[1734250229081,6.44332507,217.26,217.13,5.58612918]
[1734250229288,2.3025,217.2,217.18,6.44332507]
[1734250229482,2.16,217.19,217.18,6.44332507]
[1734250230783,2.3018,217.26,217.18,6.44332507]
[1734250230986,5.64153162,217.31,217.21,6.44332507]
[1734250230987,2.16,217.25,217.21,6.44332507]
[1734250231188,2.16,217.24,217.21,6.44332507]
[1734250231384,2.16,217.23,217.21,6.44332507]
[1734250233792,5.64153162,217.31,217.21,6.44332507]
[1734250233986,2.16,217.3,217.26,6.44332507]
[1734250235188,2.3016,217.29,217.23,2.3021]
[1734250236198,2.3016,217.28,217.23,2.3021]
[1734250236695,2.16,217.29,217.25,2.3019]
[1734250236890,2.16,217.29,217.25,12.37607595]
[1734250238593,2.16,217.29,217.26,2.3018]
[1734250239488,56.78157613,217.35,217.26,2.3018]
[1734250239691,2.16,217.34,217.28,10.07417595]
[1734250240491,4.461,217.34,217.28,12.37577595]
[1734250241496,2.301,217.34,217.28,12.37577595]
[1734250241796,2.16,217.33,217.28,12.37577595]
[1734250241991,2.16,217.33,217.25,10.07417595]
[1734250243595,2.3014,217.31,217.25,10.07417595]
[1734250244493,2.3014,217.31,217.25,12.37597595]
[1734250244692,2.3014,217.31,217.25,10.07417595]
[1734250245292,2.3012,217.32,217.26,2.3017]
[1734250246297,2.16,217.33,217.25,10.07417595]
[1734250246596,2.16,217.33,217.24,2.3019]
[1734250247697,2.3015,217.3,217.24,2.3019]
[1734250248398,2.16,217.33,217.23,4.5973]
[1734250248600,12.23417595,217.33,217.23,3.0728]
[1734250248892,12.23417595,217.33,217.23,1.5369]
[1734250250600,2.3019,217.26,217.23,1.5369]
[1734250250904,2.16,217.25,217.23,1.5369]
[1734250253698,4.4619,217.25,217.23,1.5369]
[1734250256702,2.16,217.25,217.23,1.5369]
[1734250257298,2.16,217.25,217.23,7.98584002]
[1734250260696,2.16,217.25,217.23,1.5369]
[1734250261594,2.16,217.25,217.24,6.44894002]
[1734250262796,2.16,217.25,217.2,6.44894002]
[1734250263996,2.16,217.25,217.22,6.44894002]
[1734250263997,4.462,217.25,217.22,6.44894002]
[1734250265401,2.302,217.24,217.22,6.44894002]
[1734250266099,2.302,217.24,217.2,6.44894002]
[1734250266303,2.16,217.25,217.2,6.44894002]
[1734250266506,2.3021,217.23,217.2,6.44894002]
[1734250267702,4.462,217.25,217.2,6.44894002]
[1734250268002,4.462,217.25,217.22,6.44894002]
[1734250270107,2.16,217.25,217.22,6.44894002]
[1734250270609,2.16,217.25,217.2,6.44894002]
[1734250271208,2.302,217.24,217.2,6.44894002]
[1734250271508,2.16,217.25,217.2,6.44894002]